{"text_format":"3","workbook":"xlsx","n_sheets":3,"sheets":["附件1","附件2","Sheet3"],"not_rendered":{"images":4,"defined_names":6},"read":"whole","date_system":"1900"}

{"sheet":"附件1","index":0,"n_rows":28,"n_cols":10,"rows_kept":28,"merged":[[1,0,1,8],[2,0,2,8],[4,0,5,0],[4,1,5,1],[4,2,5,2],[4,3,5,3],[4,4,4,7],[4,8,5,8],[4,9,5,9]]}
["附件1."]
["綦江区2025年部分财政衔接推进乡村振兴补助资金项目计划调减情况表"]
[]
[{"$nulls":8},"单位：万元"]
["序号","项目名称","主要建设内容","绩效目标","本次资金调减安排情况",{"$nulls":3},"原投资计划文件","区级指导科室"]
[{"$nulls":4},"中央","市级","区级","合计"]
[1,"2025年綦江区脱贫人口跨省就业支持项目","用于脱贫人口跨省就业交通补助支持。","通过补贴跨省务工交通费，有效降低1500名脱贫人口外出务工交通支出。",0.0087,null,null,{"$f":"E7+F7+G7","v":0.0087},"綦乡振〔2024〕18号","就业促进科"]
[2,"2025年綦江区产业帮扶补助项目","优质稻2亩及以上、200元/亩；其它粮油（油菜、高粱、玉米、大豆、花生等）5亩及以上、200元/亩；生猪1头及以上、500元/头；蔬菜5亩及以上、200元/亩；山羊10只及以上、300元/只；肉兔常年存栏200只以上、30元/只；水产养殖水面5亩及以上、400元/亩；鸡鸭鹅家禽三类总数40只及以上、10元/只。支持庭院经济发展。","产业发展补助≥1000户建卡贫困群众。",3.643312,null,0.191432,3.834744,"綦乡振〔2024〕18号","规划发展科"]
[3,"2025年綦江区脱贫小额信贷贴息项目","用于脱贫户小额信贷贴息。","累计贴息500户。",3.779339,null,null,3.779339,"綦乡振〔2024〕18号","规划发展科"]
[4,"2025年綦江区种植业补贴项目","1.采购萝卜种子3万亩；\n2.集中成片发展种植米粉专用稻100亩以上；\n3.种植四季青3000亩；\n4.种植珠芽蓼2000亩；\n5.种植野菊花1000亩。\n以实际建设内容为准。","该项目实施后，带动全区2万多户，7万余人，其中脱贫户和监测对象0.3万户。",2e-5,null,null,2e-5,"綦乡振〔2024〕18号","农业服务中心"]
[5,"2025年綦江区东溪镇盆石村老旧农房整治及配套基础设施项目","对盆石村进行危房排危整治、庭院整治修复及农村基础配套设施建设。具体建设内容以实施方案为准。","改善90户1000人，其中脱贫户1户2人生产生活条件。",13.532966,null,null,13.532966,"綦乡振〔2024〕18号","城乡融合促进科"]
[6,"2025年綦江区三角镇红岩村老旧农房整治及配套基础设施项目","对红岩村沿线老旧农房进行排危整治、庭院整治修复及农村基础配套设施建设。具体建设内容以实施方案为准。","改善65户210人，其中脱贫户5户15人人居环境条件。",5.035152,16.289652,null,21.324804,"綦乡振〔2024〕18号","城乡融合促进科"]
[7,"2025年綦江区东溪镇上书村老旧农房整治及配套基础设施项目","对上书村进行危房排危整治、庭院整治修复及农村基础配套设施建设。具体建设内容以实施方案为准。","改善108户800人，其中脱贫户2户6人生产生活条件。",null,11.095889,null,11.095889,"綦乡振〔2024〕18号","城乡融合促进科"]
[8,"2025年綦江区赶水镇老旧农房整治及配套基础设施项目","道路沿线环境整治5公里；公共区域排危12处；人行便道田间5公里；人行石板路2公里；维修改造村民住宅数量60座；维修改造村庄公共建筑数量30处。","通过该项目建设后，可解决石房周边2个村280余户600余人出行、生产难问题。",null,11.935838,null,11.935838,"綦乡振〔2024〕18号","城乡融合促进科"]
[9,"2025年綦江区三角镇永安村、徐家村老旧农房整治及配套基础设施项目","对永安村、徐家村沿线老旧农房进行排危整治、庭院整治修复及农村基础配套设施建设。具体建设内容以实施方案为准。","改善45户164人，其中脱贫户2户6人人居环境条件。",null,16.343999,null,16.343999,"綦乡振〔2024〕18号","城乡融合促进科"]
[10,"2025年綦江区三角镇乐升坪村老旧农房整治及配套基础设施项目","对乐升坪村沿线老旧农房进行排危整治、庭院整治修复及农村基础配套设施建设。具体建设内容以实施方案为准。","改善280户840人，其中脱贫户6户18人人居环境条件。",null,13.263402,null,13.263402,"綦乡振〔2024〕18号","城乡融合促进科"]
[11,"2025年綦江区横山镇新寨村思林片区老旧农房整治及配套基础设施项目","对新寨村思林片区老旧农房进行排危整治、庭院整治修复及农村基础配套设施建设。具体建设内容以实施方案为准。","整治80余人人居生活环境，改善出行条件",null,20.893144,null,20.893144,"綦乡振〔2024〕18号","城乡融合促进科"]
[12,"2025年綦江区石角镇石河村集体茶园水肥一体化灌溉系统建设项目","1.安装田间管网19.043km；\n2.安装喷灌设备1套；\n3.安装首部系统1套；\n4.泵房及配套设施建设。","项目实施可稳定茶叶产量，提升茶叶品质，减少施肥用工成本，直接带动5人以上就业。",null,1.1e-5,null,1.1e-5,"綦乡振〔2024〕18号","农业服务中心"]
[13,"2025年綦江区加工产业发展补助项目","新增萝卜精深加工企业2家、新增糯玉米精深加工企业1家。","带动当地经济发展，促进萝卜、糯玉米产值亩均提升30%以上。",null,25.07,null,25.07,"綦乡振〔2025〕5号","规划发展科"]
[14,"2025年綦江区三角镇望石村花椒油加工项目","1.购置花椒油加工设备一套（TLJ-120环保筛提料机（含电机）、80新型重力环保筛 每小时1000斤（含底座支架）、TLJ-120直提料机（配炒锅、含电机）、100型环保电炒锅200斤/次、TLJ-240提料机（斜提、含电机）、6YL-131-Z熟榨螺旋榨油机含电机（大压力、出油王）。 每小时处理原料500-600斤。不锈钢毛油桶（含滤网）、90型多功能水化离心一体机、不锈钢接油槽（带盖）、SLYJ-180双冷双泵冷油机、全自动叶片式气压滤油机、0.5T不锈钢油罐、ZXG-2全自动双头流量计灌装机（含压盖机、空压机、输送带、质检灯、动力头）、GSY-A8称重式灌装机、250Z全自动黄曲霉毒素降解机、高温油泵、绞龙枯饼输送带、安装调试（含连接件及辅材）、穿线管、线缆等、管道、阀门、焊材等、运费）；\n2.水电安装（水：32管50米、水表1个、管件若干；电：电线25平方300米、电线10平方200米、电表1个、闸刀开关）。","建设完成后望石村及周边村,通过专业合作社+业主+农户模式，项目建成后，每年能加工花椒油100吨，解决三角当地1500亩花椒产业的销售问题，固定收入1.5万元以上。",null,1.1248,null,1.1248,"綦乡振〔2025〕5号","规划发展科"]
[15,"2025年綦江区公益性岗位开发项目","开发全日制公益性岗位和非全日制公益性岗位为脱贫人口或监测对象提供更多就业机会。","为500余名脱贫人口或监测人口提供就业岗位，增加家庭收入。",null,5.114418,null,5.114418,"綦乡振〔2025〕8号","城乡融合促进科"]
[16,"2025年綦江区篆塘镇珠滩村小龙虾养殖基地建设项目","1.建设1.72米高、3米宽的虾塘安全防护网约1000米；\n2.人行便道硬化约1360米。","项目实施后，可降低养殖生产成本，提高养殖收益，增加村集体经济收入，预计增收1万元/年以上",null,0.0685,null,0.0685,"綦乡振〔2025〕8号","水产站"]
[17,"2025綦江区年低收入群体及重点对象租房补助项目","完成2025年全区低收入群体及重点对象租房补助。","项目实施预计可解决困难群众282人租房补助住房安全问题。",null,null,0.018,0.018,"綦乡振〔2025〕5号","村建科"]
[18,"2025年郭扶镇紫苏加工项目","购置多功能烘干设备1台、传送输送设备1台、加工操作台1台、沙杂清筛机2台、上料斗1台、斗式提升机2台、分级筛1台。","带动2000人发展紫苏种植1000亩以上。",null,null,0.22,0.22,"綦乡振〔2025〕5号","规划发展科"]
[19,"2025年綦江区篆塘镇渡沙村稻虾养殖基地建设项目","1.塘沿及步道建设。新建环形生产步道长约4000米，路宽0.9～0.99米，厚10cm，（结合实际情况修建）采用机拌C20混凝土浇筑铺设。\n2.渠道整治。清淤约长约550米，厚约0.5米，宽约2米；M7.5砂浆淌沟底长约550米，均宽约2.5米，厚5cm；两侧机拌C20混凝土浇筑沟壁长约550米*2，厚10cm，高2米。","项目实施后使乡村产业基础设施提档升级，增加集体经济及群众收入。",null,null,1.620048,1.620048,"綦乡振〔2025〕7号","水产站"]
[20,"2025年綦江区农产品品牌培育与推广项目","加强全区农业品牌培育，开展农产品质量安全检测，参照2024年市级下达检测目标任务，需完成定量监测农产品920个，其中例行监测农产品样品数量765个，监督抽检农产品样品数量155个。保障农产品质量安全的同时，通过品牌打造，实现优质优价。做好“土特产”品牌打造及宣传，推荐我区“土特产”参加节会展会，并通过网络、媒体、平面广告、互联网直播带货、制作农产品消费指南（宣传画册）等宣传展示綦江特色农产品，推动产销对接。对获得绿色食品、有机食品、重庆市名牌农产品等市级以上农业品牌新认证及续展的进行补助、宣传。","提高我区“土特产”品牌的知名度，市级以上有效期内农业品牌数量稳定在70个；我区食用农产品质量安全抽检合格率在98%以上，不发生重大农产品质量安全事故。",null,null,2.76,2.76,"綦乡振〔2025〕8号","质环站"]
[21,"2025年綦江区农业保险\n（种植业）","在全区范围内开展种植业保险，提高抗灾能力，推动种植业生产稳定增效。预计：\n1.全区蔬菜保险0.6万亩；区级补贴14.4元/亩。\n2.水稻、玉米保险16万亩；区级补贴7.65/亩\n3.油菜保险1.1万亩；区级补贴3元/亩\n4.脱贫户自交部分2万亩；区级补贴5.625元亩\n5.大户自交部分2万亩；区级补贴8.1元亩\n6.柑橘灾害险5000亩；区级补贴3万元。\n以实际参保面积结算。","该项目实施后，带动全区3万多户，11万人，其中脱贫户和监测对象0.7万户。",null,null,4.9e-5,4.9e-5,"綦乡振〔2025〕5号","农业服务中心"]
[22,{"$nulls":3},{"$f":"SUM(E7:E27)","v":25.999489},{"$f":"SUM(F7:F27)","v":121.199653},{"$f":"SUM(G7:G27)","v":4.809529},152.008671]

{"sheet":"附件2","index":1,"n_rows":10,"n_cols":14,"rows_kept":10,"merged":[[1,0,1,13],[3,0,4,0],[3,1,4,1],[3,2,4,2],[3,3,4,3],[3,4,4,4],[3,5,4,5],[3,6,4,6],[3,7,3,10],[3,11,4,11],[3,12,4,12],[3,13,4,13]]}
["附件2"]
["綦江区2025年第五批财政衔接推进乡村振兴补助资金项目计划下达情况明细表"]
[{"$nulls":13},"单位：万元"]
["序号","项目主管部门","项目业主单位","项目名称","主要建设内容","绩效目标","项目总投资","本次安排资金情况",{"$nulls":3},"累计下达","区级指导科室","财政预算文号"]
[{"$nulls":7},"中央","市级","区级","合计"]
[1,"区农业农村委","区农业农村委","2025年綦江区产业帮扶补助项目","优质稻2亩及以上、200元/亩；其它粮油（油菜、高粱、玉米、大豆、花生等）5亩及以上、200元/亩；生猪1头及以上、500元/头；蔬菜5亩及以上、200元/亩；山羊10只及以上、300元/只；肉兔常年存栏200只以上、30元/只；水产养殖水面5亩及以上、400元/亩；鸡鸭鹅家禽三类总数40只及以上、10元/只。支持庭院经济发展。","产业发展补助≥1000户建卡贫困群众。",1127,null,121.199653,null,{"$f":"H6+I6+J6","v":121.199653},1066.148417,"规划发展科","綦江财发〔2025〕1号（渝财农〔2024〕103号）、綦江财发〔2025〕222号(渝财农〔2025〕70号)"]
[2,"区农业农村委","区农业农村委","2025年綦江区加工产业发展补助项目","新增萝卜精深加工企业2家、新增糯玉米精深加工企业1家。","带动当地经济发展，促进萝卜、糯玉米产值亩均提升30%以上。",48.3346,23.4046,null,null,{"$f":"H7+I7+J7","v":23.4046},48.3346,"规划发展科","綦江财发〔2025〕1号（渝财农〔2024〕103号）"]
[3,"区农业农村委","区农业农村委","2025年綦江区公益性岗位开发项目","开发全日制公益性岗位和非全日制公益性岗位为脱贫人口或监测对象提供更多就业机会。","为500余名脱贫人口或监测人口提供就业岗位，增加家庭收入。",497.074739,2.594889,null,2.519529,{"$f":"H8+I8+J8","v":5.114418},497.074739,"城乡融合促进科","綦江财发〔2025〕1号（渝财农〔2024〕103号）、綦江财发〔2025〕1号"]
[4,"区农业农村委","区农业农村委","2025年綦江区无害化厕所建设项目","农村户厕改造251户。","改善251户农户卫生环境。",19.51,null,null,2.29,{"$f":"H9+I9+J9","v":2.29},19.51,"城乡融合促进科","綦江财发〔2025〕1号"]
[5,{"$nulls":5},{"$f":"SUM(G6:G9)","v":1691.919339},{"$f":"SUM(H6:H9)","v":25.999489},{"$f":"SUM(I6:I9)","v":121.199653},{"$f":"SUM(J6:J9)","v":4.809529},{"$f":"H10+I10+J10","v":152.008671},{"$f":"SUM(L6:L9)","v":1631.067756}]

{"sheet":"Sheet3","index":2,"n_rows":0,"n_cols":0,"rows_kept":0}